Cogmind - Beta 12 @@@ ROGUE MODE // 2023.05.14 @ 16:46:15 Player: wchar_t Result: Exoskeleton Destroyed Performance ------------- Evolutions (9) 4500 Regions Visited (18) 3600 Robots Destroyed (43) 215 Value Destroyed (1779) 1779 Prototype IDs (19) 380 Alien Tech Used (9) 1800 Bonus (22676) 22676 TOTAL SCORE: 34950 Bonus ------- Pacifist 1325 Triggered Max Security 2000 High Alert Combat Kills 689 Follower Combat Kills 162 Entered DSFs 500 Used Core Reset Matrix 3000 Integrated Exoskeleton 5000 Met MAIN.C 5000 Destroyed MAIN.C Shell 5000 Cogmind --------- Core Integrity 0/1600 Matter 300/300 Energy 49/200 System Corruption 0% Temperature Cool (0) Movement Walking (30) Location -1/Command Parts ------- > --- POWER (1) -------- (None) > --- PROPULSION (3) --- Sigix Exoskeleton > --- UTILITY (4) ------ Experimental Force Field > --- WEAPON (3) ------- Sigix Sheargun Heavy Hardcell Cannon > --- INVENTORY (9) ---- Quantum Reactor Terrabomb Terrabomb Terrabomb Heavy Quantum Rifle Sigix Sheargun Sigix Sheargun Sigix Sheargun Rocket Array Peak State ------------ > --- POWER ------------ Quantum Reactor > --- PROPULSION ------- Sigix Exoskeleton > --- UTILITY ---------- Enhanced Optical Array Advanced Targeting Computer Advanced Force Field Antimissile System > --- WEAPON ----------- Sigix Sheargun Sigix Sheargun Sigix Sheargun > --- INVENTORY -------- Light Quantum Reactor Graphene Brace Terrabomb Terrabomb Terrabomb Heavy Quantum Rifle Sigix Sheargun Null Cannon Rocket Array [Rating: 229] Favorites ----------- Power Light Particle Reactor Engine Light Angular Momentum Engine Reactor Light Particle Reactor Propulsion Impulse Thruster Treads Light Treads Leg Sigix Exoskeleton Hover Unit Combat Antigrav System Flight Unit Impulse Thruster Utility Enhanced Optical Array Device Advanced Sensor Array Storage High-capacity Storage Unit Processor Enhanced Optical Array Hackware Advanced Hacking Suite Protection Improved Propulsion Shielding Artifact Phase Redirector Weapon Sigix Sheargun Energy Gun Sigix Sheargun Energy Cannon Null Cannon Ballistic Gun Autogun Ballistic Cannon Enhanced Gauss Cannon Launcher Grenade Launcher Slashing Weapon Axe Build | -11 -10 -10 -9 -8 -7 -6 -6 -6 -5 -4 -4 -3 -3 -2 -2 -2 -1 -1 ------- Run | Jun Mat Min Mat Mat Fac Fac Was Fac Fac Fac DSF Res Qua Res Tes Sec Acc Com Slots Evolved 18 | . . . 2 2 2 2 . . 2 2 . 2 . 2 . . 2 . Power . | . . . . . . . . . . . . . . . . . . . Propulsion 8 | . . . 1 1 1 1 . . 1 1 . 1 . 1 . . . . Utility 9 | . . . 1 1 1 1 . . 1 1 . 1 . 1 . . 1 . Weapon 1 | . . . . . . . . . . . . . . . . . 1 . Parts Attached 147 | 2 . . . 2 12 1 . 15 15 . 4 8 20 12 9 11 18 18 Power 12 | . . . . . . . . . 3 . . 1 2 3 . 1 1 1 Engine 3 | . . . . . . . . . 3 . . . . . . . . . Core . | . . . . . . . . . . . . . . . . . . . Reactor 9 | . . . . . . . . . . . . 1 2 3 . 1 1 1 Propulsion 30 | 2 . . . . 5 . . 5 3 . 3 2 5 1 2 2 . . Treads 2 | 2 . . . . . . . . . . . . . . . . . . Leg . | . . . . . . . . . . . . . . . . . . . Wheel . | . . . . . . . . . . . . . . . . . . . Hover 9 | . . . . . 4 . . 1 . . . 2 2 . . . . . Flight 19 | . . . . . 1 . . 4 3 . 3 . 3 1 2 2 . . Utility 69 | . . . . 2 5 1 . 3 7 . 1 5 9 6 2 2 15 11 Device 35 | . . . . 2 . . . . 2 . . 2 4 3 2 2 10 8 Storage 4 | . . . . . . . . . . . . 1 2 1 . . . . Processor 15 | . . . . . 3 . . 1 2 . . 1 1 1 . . 5 1 Hackware 9 | . . . . . 2 1 . . 1 . 1 1 1 . . . . 2 Protection 5 | . . . . . . . . 2 2 . . . . 1 . . . . Artifact 1 | . . . . . . . . . . . . . 1 . . . . . Weapon 36 | . . . . . 2 . . 7 2 . . . 4 2 5 6 2 6 Energy Gun 10 | . . . . . . . . . . . . . . . 2 5 1 2 Energy Cannon 8 | . . . . . . . . 2 . . . . 1 1 1 . 1 2 Ballistic Gun 2 | . . . . . . . . 2 . . . . . . . . . . Ballistic Cannon 6 | . . . . . . . . . . . . . 2 1 1 . . 2 Launcher 8 | . . . . . 2 . . 2 2 . . . . . 1 1 . . Special Weapon . | . . . . . . . . . . . . . . . . . . . Impact Weapon . | . . . . . . . . . . . . . . . . . . . Slashing Weapon 2 | . . . . . . . . 1 . . . . 1 . . . . . Piercing Weapon . | . . . . . . . . . . . . . . . . . . . Special Melee Weapon . | . . . . . . . . . . . . . . . . . . . Unidentified Prototypes 22 | . . . . . 1 . . 2 . . . 1 5 2 5 2 . 4 Parts Lost 52 | . . . . 3 2 3 . 2 3 . 7 1 7 9 7 5 . 3 Power 6 | . . . . . . . . . . . 1 . 1 1 1 1 . 1 Propulsion 25 | . . . . 2 1 3 . . 2 . 2 1 4 4 4 2 . . Utility 18 | . . . . 1 1 . . 1 1 . 3 . 2 3 2 2 . 2 Weapon 3 | . . . . . . . . 1 . . 1 . . 1 . . . . Highest Loss Streak 7 | . . . . 2 2 3 . 1 3 . 7 1 3 6 3 3 . 1 To Critical Strikes . | . . . . . . . . . . . . . . . . . . . Average Slot Usage (%) 63 | . 28 28 22 24 41 60 46 66 85 . 77 66 80 74 53 39 69 73 Reactor 3 | . . . . . . . . . . . . 1 4 4 3 . 8 9 Treads 1 | . 28 28 22 12 . . . . . . . . . . . . . . Leg 2 | . . . . . . . . . . . . . . . . 3 9 9 Hover 4 | . . . . . 17 15 . 5 1 . . 4 9 8 5 . . . Flight 9 | . . . . . . 6 6 15 26 . 26 26 19 17 5 5 . . Device 9 | . . . . 12 4 . . . 4 . 5 6 10 11 13 11 16 13 Processor 12 | . . . . . 8 20 20 18 11 . 10 11 14 13 15 9 13 14 Hackware 8 | . . . . . 8 18 20 14 15 . 16 9 14 12 6 2 . 1 Protection 1 | . . . . . . . . 6 6 . 4 . . 3 . . . . Energy Gun 6 | . . . . . . . . . . . . . . . . 6 22 22 Slashing Weapon 1 | . . . . . . . . 2 5 . 5 4 4 . . . . . Naked Turns . | . . . . . . . . . . . . . . . . . . . Heaviest Build 63 | . . . . 2 4 . . 10 22 18 18 20 28 29 32 15 63 62 Greatest Support 60 | 3 3 3 3 3 3 3 3 20 41 41 41 37 38 46 32 60 60 60 Greatest Overweight (x) 3 | . . . . . 1 . . 1 . . . . 1 . 3 2 1 1 Average Overweight (x) . | . . . . . . . . . . . . . . . . . . . Largest Inventory Capacity 20 | 5 5 5 5 5 5 5 5 5 5 5 5 5 20 5 5 9 9 9 Average Capacity 6 | 5 5 5 5 5 5 5 5 5 5 5 5 5 5 5 5 7 9 9 Most Carried 9 | . . 2 2 3 4 5 5 5 5 4 5 5 5 5 5 9 9 9 Average Carried 5 | . . . 2 2 3 3 5 4 4 4 3 4 4 4 4 5 8 8 Final Capacity 9 | 5 5 5 5 5 5 5 5 5 5 5 5 5 5 5 5 9 9 9 Final Carried 9 | . . 2 2 3 3 5 5 5 4 4 5 4 5 5 5 9 9 9 Class Distribution -------------------- 26% | Alien-Sigix 17% | Hacker-Scout 13% | Hacker-Ninja 11% | Mutant 10% | Hacker-Sprinter 9% | Hacker-Mutant 7% | Scout Dominant Class ---------------- Mutant | -10/Materials Mutant | -10/Mines Mutant | -9/Materials Mutant | -8/Materials Mutant | -7/Factory Hacker-Mutant | -6/Factory Hacker-Mutant | -6/Waste Hacker-Sprinter | -6/Factory Hacker-Sprinter | -5/Factory Hacker-Sprinter | -4/Factory Hacker-Scout | -4/DSF Hacker-Scout | -3/Research Hacker-Ninja | -3/Quarantine Hacker-Scout | -2/Research Hacker-Scout | -2/Testing Scout | -2/Section 7 Alien-Sigix | -1/Access Alien-Sigix | -1/Command Resources | -11 -10 -10 -9 -8 -7 -6 -6 -6 -5 -4 -4 -3 -3 -2 -2 -2 -1 -1 ----------- Run | Jun Mat Min Mat Mat Fac Fac Was Fac Fac Fac DSF Res Qua Res Tes Sec Acc Com Matter Collected 2171 | 220 . . . . . . . 337 33 . 167 . 209 115 133 186 216 555 Remotely . | . . . . . . . . . . . . . . . . . . . Salvage Created 2687 | . . . . . . . . 193 138 . 182 . 170 115 127 100 261 1401 Parts 100 | . . . . . . . . 10 18 . . . 2 1 1 9 14 45 Haulers Intercepted 2 | . . . . . . . . 1 . . . . . 1 . . . . Recyclers Shooed 1 | . . . . . . . . . . . . . . . . . . 1 Parts Field Recycled . | . . . . . . . . . . . . . . . . . . . Retrieved Matter . | . . . . . . . . . . . . . . . . . . . Parts Self-Destructed . | . . . . . . . . . . . . . . . . . . . Prevented . | . . . . . . . . . . . . . . . . . . . Kills | -11 -10 -10 -9 -8 -7 -6 -6 -6 -5 -4 -4 -3 -3 -2 -2 -2 -1 -1 ------- Run | Jun Mat Min Mat Mat Fac Fac Was Fac Fac Fac DSF Res Qua Res Tes Sec Acc Com Combat Hostiles Destroyed 29 | . . . . . . . . 4 5 . . . 1 . . 5 3 11 Melee 2 | . . . . . . . . . . . . . . . . . 1 1 Guns 9 | . . . . . . . . . . . . . . . . . 2 7 Cannons 4 | . . . . . . . . . . . . . 1 . . . . 3 AOE 14 | . . . . . . . . 4 5 . . . . . . 5 . . Classes Destroyed 12 | . . . . . . . . 3 2 . . . 1 . 1 . 2 3 Worker 2 | . . . . . . . . . . . . . . . 1 . 1 . Tunneler 1 | . . . . . . . . . 1 . . . . . . . . . Hauler 2 | . . . . . . . . 1 . . . . . 1 . . . . Recycler 4 | . . . . . . . . . . . . . 1 . 1 . . 2 Operator 1 | . . . . . . . . . 1 . . . . . . . . . Watcher 4 | . . . . . . . . 2 1 . . . . . . . . 1 Swarmer 17 | . . . . . . . . 4 5 . . . 1 . . 5 . 2 Cutter 2 | . . . . . . . . . . . . . . . . . . 2 Saboteur 1 | . . . . . . . . . . . . . . . . . . 1 Grunt 2 | . . . . . . . . . . . . . . . . . . 2 Sentry 1 | . . . . . . . . . . . . . . . . . 1 . Programmer 5 | . . . . . . . . . . . . . . . . . 2 3 Best Kill Streak 6 | . . . . . . . . 4 6 . . . 1 1 1 5 2 3 Combat Bots Only 5 | . . . . . . . . 4 5 . . . 1 . . 5 2 3 Max Kills in Single Turn 5 | . . . . . . . . 2 5 . . . 1 1 1 5 1 2 Gunslinging . | . . . . . . . . . . . . . . . . . . . Exploded 5 | . . . . . . . . 2 4 . . . . . . 5 . . Melee 1 | . . . . . . . . . . . . . . . . . 1 1 Uniques/NPCs Destroyed 1 | . . . . . . . . . . . . . . . . . . 1 MAIN.C Shell (-1/Command) Combat | -11 -10 -10 -9 -8 -7 -6 -6 -6 -5 -4 -4 -3 -3 -2 -2 -2 -1 -1 -------- Run | Jun Mat Min Mat Mat Fac Fac Was Fac Fac Fac DSF Res Qua Res Tes Sec Acc Com Damage Taken 10958 | . . 238 15 278 199 204 . 323 270 . 475 104 1220 878 336 2005 154 4259 Core 3673 | . . 29 . 210 51 119 . 114 40 . 240 61 257 97 74 1084 43 1254 Absorbed by Shields 1399 | . . . . . . . . . . . . . . . . . 168 1231 Redirected to Shielding 319 | . . . . . . . . 60 41 . 106 . . 112 . . . . Core Remaining (%) 76 | 100 . 88 100 61 92 . . 72 96 . 79 . 71 . . 6 . . Volleys Fired 164 | . . . . . 3 . . 10 2 . . . 9 15 14 19 30 62 Largest 3 | . . . . . 1 . . 2 1 . . . 1 1 1 2 3 3 Hottest 330 | . . . . . 30 . . 69 45 . . . 57 57 130 200 300 330 Shots Fired 261 | . . . . . 3 . . 16 2 . . . 9 15 14 29 43 130 Gun 173 | . . . . . . . . 12 . . . . . . 2 28 41 90 Cannon 79 | . . . . . . . . 1 . . . . 9 15 12 . 2 40 Launcher 9 | . . . . . 3 . . 3 2 . . . . . . 1 . . Special . | . . . . . . . . . . . . . . . . . . . Kinetic 70 | . . . . . . . . 12 . . . . 9 15 9 . . 25 Thermal 27 | . . . . . . . . . . . . . . . 5 5 2 15 Explosive 9 | . . . . . 3 . . 3 2 . . . . . . 1 . . Electromagnetic 1 | . . . . . . . . 1 . . . . . . . . . . Slashing 154 | . . . . . . . . . . . . . . . . 23 41 90 Robot Hit Streak 13 | . . . . . . . . 4 4 . . . 5 . 3 4 4 13 Robot Miss Streak 3 | . . . . . . . . 1 2 . . . . . 2 3 3 3 Penetration Max 1 | . . . . . . . . . . . . . . . . . 1 1 Secondary Targets 1 | . . . . . . . . . . . . . . . . . . 1 Max Gunslinging Chain 1 | . . . . . . . . . . . . . . . . . . 1 Shots Hit Robots 125 | . . . . . . . . 19 5 . . 4 5 3 4 2 11 72 Core Hits 89 | . . . . . 4 . . 13 14 . . . 2 1 2 11 5 37 Critical Kills . | . . . . . . . . . . . . . . . . . . . Critical Parts Destroyed . | . . . . . . . . . . . . . . . . . . . Critical Strikes 2 | . . . . . . . . 1 . . . . 1 . . . . . Sever 2 | . . . . . . . . 1 . . . . 1 . . . . . Melee Attacks 60 | . . . . . . . . 8 11 . 11 4 22 4 . . . . Impact . | . . . . . . . . . . . . . . . . . . . Slashing 60 | . . . . . . . . 8 11 . 11 4 22 4 . . . . Piercing . | . . . . . . . . . . . . . . . . . . . Sneak Attacks 4 | . . . . . . . . 1 1 . . . 1 1 . . . . Combat Hostiles . | . . . . . . . . . . . . . . . . . . . Follow-up Attacks . | . . . . . . . . . . . . . . . . . . . Damage Inflicted 9632 | . . . . 12 24 . . 774 463 . . 153 263 243 196 467 1098 5939 Guns 4521 | . . . . . . . . 178 . . . . . . . 36 850 3457 Cannons 2375 | . . . . . . . . 31 . . . . 117 . 196 . . 2031 Explosions 911 | . . . . . 3 . . 242 300 . . . . . . 366 . . Melee 1027 | . . . . . . . . 323 163 . . 153 146 242 . . . . Ramming 798 | . . . . 12 21 . . . . . . . . 1 . 65 248 451 Kinetic 1767 | . . . . . . . . 178 . . . . 117 . 103 . . 1369 Thermal 791 | . . . . . . . . . . . . . . . 93 36 . 662 Explosive 911 | . . . . . 3 . . 242 300 . . . . . . 366 . . Electromagnetic 31 | . . . . . . . . 31 . . . . . . . . . . Impact . | . . . . . . . . . . . . . . . . . . . Slashing 5334 | . . . . . . . . 323 163 . . 153 146 242 . . 850 3457 Piercing . | . . . . . . . . . . . . . . . . . . . Highest Corruption 12 | . . . . . . . . 2 . . . . 12 2 2 2 . . Average Corruption 4 | . . . . . . . . 1 . . . . 12 1 2 2 . . Corruption Purged . | . . . . . . . . . . . . . . . . . . . Corruption Blocked . | . . . . . . . . . . . . . . . . . . . Effects 35 | . . . . . . . . 3 . . . . 20 . 4 8 . . Message Errors 12 | . . . . . . . . 1 . . . . 11 . . . . . Matter Fused 11 | . . . . . . . . 1 . . . . 3 . 2 5 . . Heat Flow Errors 2 | . . . . . . . . 1 . . . . . . . 1 . . Energy Discharges 4 | . . . . . . . . . . . . . 1 . 1 2 . . Data Loss (minor) 1 | . . . . . . . . . . . . . . . 1 . . . Data Loss (major) 1 | . . . . . . . . . . . . . 1 . . . . . Alerts 2 | . . . . . . . . . . . . . 2 . . . . . Misdirections 2 | . . . . . . . . . . . . . 2 . . . . . Overload Shots . | . . . . . . . . . . . . . . . . . . . Overflow Damage 318 | . . . . . . . . 27 68 . . 10 60 2 53 1 67 30 Projectiles 60 | . . . . . . . . . . . . . . . 53 . . 7 Explosions 5 | . . . . . . . . . 4 . . . . . . 1 . . Melee 253 | . . . . . . . . 27 64 . . 10 60 2 . . 67 23 Knockbacks 20 | . . . . . 1 . . . . . . . . . 2 2 1 14 Impact 5 | . . . . . 1 . . . . . . . . . . 2 1 1 Kinetic 15 | . . . . . . . . . . . . . . . 2 . . 13 Secondary . | . . . . . . . . . . . . . . . . . . . Self-Inflicted Damage 54 | . . . . 6 9 . . . 14 . . . . . . 25 . . Shots 2 | . . . . . . . . . 1 . . . . . . 1 . . Rammed 6 | . . . . 1 4 . . . . . . . . 1 . . . . Targets Rammed 30 | . . . . 1 4 . . . . . . . . 1 . 4 4 16 Kicked 24 | . . . . . . . . . . . . . . . . 4 4 16 Crushed . | . . . . . . . . . . . . . . . . . . . Highest Temperature 205 | . . . . . 171 . . 205 . . . . . 4 58 158 128 128 Average Temperature 64 | . . . . . 86 . . 110 . . . . . 4 28 84 75 60 Received Heat Transfer 956 | . . 27 27 45 54 78 . 27 45 . . 9 156 99 63 81 36 209 Siege Activations . | . . . . . . . . . . . . . . . . . . . Robots Corrupted . | . . . . . . . . . . . . . . . . . . . Combat Hostiles . | . . . . . . . . . . . . . . . . . . . Parts Fried . | . . . . . . . . . . . . . . . . . . . Impact Corruptions 4 | . . . . . . . . . . . . . . . . . 2 2 Robots Melted . | . . . . . . . . . . . . . . . . . . . Combat Hostiles . | . . . . . . . . . . . . . . . . . . . Parts Melted . | . . . . . . . . . . . . . . . . . . . Heat Transferred 159 | . . . . . . . . . . . . . . . 50 37 . 72 Parts Sabotaged . | . . . . . . . . . . . . . . . . . . . Parts Stolen . | . . . . . . . . . . . . . . . . . . . Parts Stripped . | . . . . . . . . . . . . . . . . . . . Power Chain Reactions . | . . . . . . . . . . . . . . . . . . . Missiles Intercepted . | . . . . . . . . . . . . . . . . . . . Alert | -11 -10 -10 -9 -8 -7 -6 -6 -6 -5 -4 -4 -3 -3 -2 -2 -2 -1 -1 ------- Run | Jun Mat Min Mat Mat Fac Fac Was Fac Fac Fac DSF Res Qua Res Tes Sec Acc Com Peak Influence 1846 | . 28 75 59 74 162 94 52 232 545 266 216 201 503 549 371 1846 1846 1535 Initial 1180 | . . 10 29 24 24 79 22 36 35 266 186 81 112 282 308 104 1116 1180 Average 474 | . 18 50 38 47 77 85 35 119 208 266 194 114 242 357 222 709 1279 1368 Maximum Alert Level 5 | . . . . . . . . 1 2 1 1 1 2 2 1 5 5 4 Low Security (%) 39 | 100 100 100 100 100 100 100 100 58 63 . 22 98 39 . 42 16 . . Level 1 25 | . . . . . . . . 41 15 100 77 2 48 70 57 18 . . Level 2 8 | . . . . . . . . . 21 . . . 12 29 . 38 . . Level 3 . | . . . . . . . . . . . . . . . . . . . Level 4 21 | . . . . . . . . . . . . . . . . . 79 100 Level 5 . | . . . . . . . . . . . . . . . . . . . High Security . | . . . . . . . . . . . . . . . . . . . Max Security 4 | . . . . . . . . . . . . . . . . 26 20 . Squads Dispatched 48 | . . . . 1 3 . . 3 . . 1 . 1 3 1 18 12 5 Investigation 4 | . . . . . 1 . . . . . . . 1 . . 1 . 1 Extermination 5 | . . . . . 1 . . 1 . . . . . 1 . . 1 1 Reinforcement 16 | . . . . 1 1 . . 2 . . 1 . . 2 1 5 2 1 Assault 20 | . . . . . . . . . . . . . . . . 12 6 2 Garrison 3 | . . . . . . . . . . . . . . . . . 3 . Intercept . | . . . . . . . . . . . . . . . . . . . Searches Triggered 1 | . . . . . . . . . . . . . . . . 1 . . Construction Impeded 1 | . . . . . . . . . . . . . . . . . 1 . Haulers Reinforced 3 | . . . . . . . . 2 . . . . . 1 . . . . Active Scanning Responses . | . . . . . . . . . . . . . . . . . . . Cargo Convoy Interrupts . | . . . . . . . . . . . . . . . . . . . Stealth | -11 -10 -10 -9 -8 -7 -6 -6 -6 -5 -4 -4 -3 -3 -2 -2 -2 -1 -1 --------- Run | Jun Mat Min Mat Mat Fac Fac Was Fac Fac Fac DSF Res Qua Res Tes Sec Acc Com Distress Signals 12 | . 1 . . . . . . 1 1 . . 1 1 1 1 1 1 3 Communications Jammed 49 | . . . . . . . . . . . . . 14 24 11 . . . Distress Signals 42 | . . . . . . . . . . . . . 7 24 11 . . . Times Spotted 304 | . 2 11 2 7 7 5 6 13 18 . 5 5 39 25 13 77 17 52 Peak Tracking Total 32 | . 2 6 2 6 5 5 6 6 12 . 4 4 10 15 9 32 14 16 Tactical Retreats 50 | . . 2 . . 2 . . 4 8 . 1 1 11 5 3 8 1 4 Traps | -11 -10 -10 -9 -8 -7 -6 -6 -6 -5 -4 -4 -3 -3 -2 -2 -2 -1 -1 ------- Run | Jun Mat Min Mat Mat Fac Fac Was Fac Fac Fac DSF Res Qua Res Tes Sec Acc Com Traps Triggered 9 | . . . . . . 1 . 2 . . 1 1 2 . . . . 2 Indirectly . | . . . . . . . . . . . . . . . . . . . Trap Hack Attempts . | . . . . . . . . . . . . . . . . . . . Triggered . | . . . . . . . . . . . . . . . . . . . Disarmed . | . . . . . . . . . . . . . . . . . . . Reprogrammed . | . . . . . . . . . . . . . . . . . . . Reused . | . . . . . . . . . . . . . . . . . . . Traps Extracted . | . . . . . . . . . . . . . . . . . . . Installed . | . . . . . . . . . . . . . . . . . . . Triggered . | . . . . . . . . . . . . . . . . . . . Machines | -11 -10 -10 -9 -8 -7 -6 -6 -6 -5 -4 -4 -3 -3 -2 -2 -2 -1 -1 ---------- Run | Jun Mat Min Mat Mat Fac Fac Was Fac Fac Fac DSF Res Qua Res Tes Sec Acc Com Machines Disabled 23 | . . . . . 2 . . 1 . . 1 . 2 . 5 4 4 4 Max in Single Turn 1 | . . . . . 1 . . 1 . . 1 . 1 . 1 1 1 1 Garrison Access 2 | . . . . . . . . 1 . . . . 1 . . . . . Machines Repaired . | . . . . . . . . . . . . . . . . . . . Machines Sabotaged . | . . . . . . . . . . . . . . . . . . . Overloaded Fab Kills . | . . . . . . . . . . . . . . . . . . . Hacking | -11 -10 -10 -9 -8 -7 -6 -6 -6 -5 -4 -4 -3 -3 -2 -2 -2 -1 -1 --------- Run | Jun Mat Min Mat Mat Fac Fac Was Fac Fac Fac DSF Res Qua Res Tes Sec Acc Com Machines Accessed 33 | . 1 . . 1 5 1 . 4 2 1 . 2 6 2 1 5 1 1 Terminals 29 | . 1 . . 1 5 1 . 3 2 1 . 1 5 2 1 4 1 1 Fabricators 1 | . . . . . . . . . . . . 1 . . . . . . Repair Stations . | . . . . . . . . . . . . . . . . . . . Recycling Units . | . . . . . . . . . . . . . . . . . . . Scanalyzers . | . . . . . . . . . . . . . . . . . . . Garrison Access 3 | . . . . . . . . 1 . . . . 1 . . 1 . . Total Hacks 79 | . 4 . . 2 13 4 . 8 9 1 . 4 16 4 2 8 3 1 Successful 37 | . 2 . . . 6 3 . 3 3 1 . 3 6 3 2 4 . 1 Failed 42 | . 2 . . 2 7 1 . 5 6 . . 1 10 1 . 4 3 . Catastrophic 4 | . . . . . 3 1 . . . . . . . . . . . . Database Lockouts . | . . . . . . . . . . . . . . . . . . . Manual 38 | . 4 . . . 9 3 . 3 9 . . 1 6 3 . . . . Terminals 70 | . 4 . . 2 13 4 . 6 9 1 . 1 14 4 2 6 3 1 Fabricators 3 | . . . . . . . . . . . . 3 . . . . . . Repair Stations . | . . . . . . . . . . . . . . . . . . . Recycling Units . | . . . . . . . . . . . . . . . . . . . Scanalyzers . | . . . . . . . . . . . . . . . . . . . Garrison Access 6 | . . . . . . . . 2 . . . . 2 . . 2 . . Terminal Hacks 24 | . 1 . . . 4 2 . 1 2 1 . 1 3 2 2 4 . 1 Open Door 5 | . . . . . . . . . . . . 1 . . . 4 . . Open DSF 1 | . . . . . . . . . . 1 . . . . . . . . Level Access Points 2 | . . . . . 1 . . . 1 . . . . . . . . . Branch Access Points 3 | . 1 . . . . . . . . . . . 1 1 . . . . Terminal Index 3 | . . . . . 1 1 . . 1 . . . . . . . . . Alert Level 2 | . . . . . . . . . . . . . 1 . 1 . . . Unreport Threat 1 | . . . . . . . . . . . . . . . 1 . . . Hauler Manifests 3 | . . . . . 1 1 . 1 . . . . . . . . . . Registered Components 1 | . . . . . . . . . . . . . . 1 . . . . Zone Layout 2 | . . . . . 1 . . . . . . . 1 . . . . . Disengage Seal 1 | . . . . . . . . . . . . . . . . . . 1 Fabricator Hacks 1 | . . . . . . . . . . . . 1 . . . . . . Network Status 1 | . . . . . . . . . . . . 1 . . . . . . Repair Station Hacks . | . . . . . . . . . . . . . . . . . . . Recycling Unit Hacks . | . . . . . . . . . . . . . . . . . . . Scanalyzer . | . . . . . . . . . . . . . . . . . . . Garrison Access Hacks 2 | . . . . . . . . 1 . . . . 1 . . . . . Seal Access 2 | . . . . . . . . 1 . . . . 1 . . . . . Unauthorized Hacks 10 | . 1 . . . 2 1 . 1 1 . . 1 2 1 . . . . Terminals 9 | . 1 . . . 2 1 . 1 1 . . . 2 1 . . . . Assimilate 3 | . . . . . 1 . . . . . . . 2 . . . . . Botnet 6 | . 1 . . . 1 1 . 1 1 . . . . 1 . . . . Fabricators 1 | . . . . . . . . . . . . 1 . . . . . . Liberate 1 | . . . . . . . . . . . . 1 . . . . . . Repair Stations . | . . . . . . . . . . . . . . . . . . . Recycling Units . | . . . . . . . . . . . . . . . . . . . Scanalyzers . | . . . . . . . . . . . . . . . . . . . Garrison Access . | . . . . . . . . . . . . . . . . . . . Data Cores Recovered 1 | . . . . . . . . . 1 . . . . . . . . . Used 1 | . . . . . . . . . 1 . . . . . . . . . Hacking Detections 27 | . 1 . . 1 4 1 . 4 2 . . 2 5 1 1 3 1 1 Full Trace Events 3 | . . . . . 1 . . . . . . . 1 . . 1 . . Feedback Events . | . . . . . . . . . . . . . . . . . . . Feedback Blocked . | . . . . . . . . . . . . . . . . . . . Robot Schematics Acquired . | . . . . . . . . . . . . . . . . . . . Robots Built . | . . . . . . . . . . . . . . . . . . . Authchips . | . . . . . . . . . . . . . . . . . . . Time . | . . . . . . . . . . . . . . . . . . . Total Robot Build Rating . | . . . . . . . . . . . . . . . . . . . Part Schematics Acquired . | . . . . . . . . . . . . . . . . . . . Parts Built . | . . . . . . . . . . . . . . . . . . . Authchips . | . . . . . . . . . . . . . . . . . . . Time . | . . . . . . . . . . . . . . . . . . . Total Part Build Rating . | . . . . . . . . . . . . . . . . . . . Parts Repaired . | . . . . . . . . . . . . . . . . . . . Time . | . . . . . . . . . . . . . . . . . . . Parts Recycled . | . . . . . . . . . . . . . . . . . . . Recycled Matter . | . . . . . . . . . . . . . . . . . . . Retrieved Matter . | . . . . . . . . . . . . . . . . . . . Retrieved Components . | . . . . . . . . . . . . . . . . . . . Parts Scanalyzed . | . . . . . . . . . . . . . . . . . . . Part Schematics Acquired . | . . . . . . . . . . . . . . . . . . . Parts Damaged . | . . . . . . . . . . . . . . . . . . . Bothacking | -11 -10 -10 -9 -8 -7 -6 -6 -6 -5 -4 -4 -3 -3 -2 -2 -2 -1 -1 ------------ Run | Jun Mat Min Mat Mat Fac Fac Was Fac Fac Fac DSF Res Qua Res Tes Sec Acc Com Used RIF Installer . | . . . . . . . . . . . . . . . . . . . Robots Hacked . | . . . . . . . . . . . . . . . . . . . Non-combat . | . . . . . . . . . . . . . . . . . . . Combat . | . . . . . . . . . . . . . . . . . . . Robot Hacks Applied . | . . . . . . . . . . . . . . . . . . . Relay Couplers Released . | . . . . . . . . . . . . . . . . . . . Fabnet Peak Effective % . | . . . . . . . . . . . . . . . . . . . Robots Rewired . | . . . . . . . . . . . . . . . . . . . Allies Hacked . | . . . . . . . . . . . . . . . . . . . Hacks Repelled . | . . . . . . . . . . . . . . . . . . . Allies | -11 -10 -10 -9 -8 -7 -6 -6 -6 -5 -4 -4 -3 -3 -2 -2 -2 -1 -1 -------- Run | Jun Mat Min Mat Mat Fac Fac Was Fac Fac Fac DSF Res Qua Res Tes Sec Acc Com Total Allies 67 | . . 2 . . . . . . . . . 2 1 . . . 12 50 Largest Group 15 | . . 2 . . . . . . . . . 2 1 . . . 2 15 Highest-Rated Group 433 | . . 49 . . . . . . . . . 128 45 . . . 27 433 Highest-Rated Ally 234 | . . 31 . . . . . . . . . 64 45 . . . 14 234 Total Orders . | . . . . . . . . . . . . . . . . . . . Ally Attacks 91 | . . 3 . . . . . . . . . . . . . . . 88 Total Damage 2711 | . . 41 . . . . . . . . . . . . . . . 2670 Kills 13 | . . . . . . . . . . . . . . . . . . 13 Allies Corrupted 3 | . . . . . . . . . . . . . . . . . . 3 Allies Melted . | . . . . . . . . . . . . . . . . . . . Intel | -11 -10 -10 -9 -8 -7 -6 -6 -6 -5 -4 -4 -3 -3 -2 -2 -2 -1 -1 ------- Run | Jun Mat Min Mat Mat Fac Fac Was Fac Fac Fac DSF Res Qua Res Tes Sec Acc Com Robot Analysis Total . | . . . . . . . . . . . . . . . . . . . Derelict Logs Recovered 2 | . . 2 . . . . . . . . . . . . . . . . Drone Launches . | . . . . . . . . . . . . . . . . . . . Drone Recoveries . | . . . . . . . . . . . . . . . . . . . Exploration | -11 -10 -10 -9 -8 -7 -6 -6 -6 -5 -4 -4 -3 -3 -2 -2 -2 -1 -1 ------------- Run | Jun Mat Min Mat Mat Fac Fac Was Fac Fac Fac DSF Res Qua Res Tes Sec Acc Com Turns Passed 4776 | 14 18 114 34 86 271 82 76 475 229 5 93 200 725 258 464 502 422 708 Spaces Moved 8793 | 23 35 222 67 163 464 122 121 979 599 17 127 451 1528 585 557 1097 608 1028 Core 1609 | 23 35 222 67 163 464 122 121 355 . . . . . . 3 34 . . Treads . | . . . . . . . . . . . . . . . . . . . Legs 1955 | . . . . . . . . . . . . . . . . 319 608 1028 Wheels . | . . . . . . . . . . . . . . . . . . . Hover 319 | . . . . . . . . 3 . . . . 20 3 293 . . . Flight 4910 | . . . . . . . . 621 599 17 127 451 1508 582 261 744 . . Fastest Speed 24 | 50 50 50 50 50 50 50 50 26 25 25 25 26 26 29 32 24 30 30 Average Speed 36 | 50 50 50 50 50 50 50 50 38 26 25 27 29 33 31 57 31 31 31 Slowest Speed 200 | 50 50 50 50 50 100 50 50 100 32 25 34 35 150 77 200 175 90 90 Overloaded Moves 11 | . . . . . . . . . . . . . . . . 11 . . Propulsion Burnouts . | . . . . . . . . . . . . . . . . . . . Robots Hopped 97 | . . . . . . . . 11 17 . 2 6 18 15 10 18 . . Cave-ins Triggered 1 | . . . . . . . . . . . . . 1 . . . . . Teleports 3 | . . . . . . . . . . . . . 1 1 . 1 . . Exploration Rate (%) 34 | 3 15 48 14 23 15 6 84 33 23 2 90 14 94 20 56 70 18 28 Regions Visited 18 Branch Regions 5 Pre-discovered Areas 1 | . . 1 . . . . . . . . . . . . . . . . Known Exits Taken 10 | . 1 . . . 1 . . 1 1 1 . 1 1 1 1 1 . . Unknown Exits Taken 5 | 1 . 1 1 1 . . . . . . . . . . . . 1 . Scrap Searched 1 | . . 1 . . . . . . . . . . . . . . . . Spaces Dug 101 | . . . . . 5 . . . 8 . . . 18 9 1 16 22 22 Terrain Destroyed 295 | . . . . . 15 . . 11 46 . . . 18 19 1 41 59 85 Melee 24 | . . . . . . . . . 8 . . . 16 . . . . . Projectile 190 | . . . . . . . . . . . . . 2 19 1 24 59 85 AOE 81 | . . . . . 15 . . 11 38 . . . . . . 17 . . Terrain Rammed . | . . . . . . . . . . . . . . . . . . . Walls Destroyed . | . . . . . . . . . . . . . . . . . . . Machines Disabled . | . . . . . . . . . . . . . . . . . . . Actions | -11 -10 -10 -9 -8 -7 -6 -6 -6 -5 -4 -4 -3 -3 -2 -2 -2 -1 -1 --------- Run | Jun Mat Min Mat Mat Fac Fac Was Fac Fac Fac DSF Res Qua Res Tes Sec Acc Com Total 9916 | 24 34 224 66 166 495 142 135 1035 624 16 162 503 1666 618 674 1206 807 1319 Wait 692 | . . 1 . . 9 17 15 20 4 . 20 45 83 8 83 74 133 180 Move 8593 | 22 34 221 66 163 463 122 120 957 565 16 122 439 1492 557 536 1063 607 1028 Hop 88 | . . . . . . . . 10 16 . 2 5 17 13 10 15 . . Pick Up 33 | . . 2 . 1 2 2 . 3 4 . 2 1 6 1 . 7 2 . Fast Attach 110 | 2 . . . 2 8 1 . 13 5 . 4 5 19 10 7 8 15 11 Attach 31 | . . . . . 4 . . 3 3 . . 3 2 3 2 8 2 1 Detach 34 | . . . . . 2 . . 5 . . . 1 2 2 6 6 4 6 Swap 17 | . . . . . . . . . 7 . . . 1 1 . 1 1 6 Drop 54 | . . . . . . . . 6 7 . 1 . 13 4 4 1 9 9 Fire 164 | . . . . . 3 . . 10 2 . . . 9 15 14 19 30 62 Melee 60 | . . . . . . . . 8 11 . 11 4 22 4 . . . . Ram 4 | . . . . . 4 . . . . . . . . . . . . . Kick 24 | . . . . . . . . . . . . . . . . 4 4 16 Crush . | . . . . . . . . . . . . . . . . . . . Escape Stasis . | . . . . . . . . . . . . . . . . . . . Rewire 12 | . . . . . . . . . . . . . . . 12 . . . Trap . | . . . . . . . . . . . . . . . . . . . Miscellaneous . | . . . . . . . . . . . . . . . . . . . Route ------- -11/Junkyard -10/Materials -10/Mines -9/Materials -8/Materials -7/Factory (discovered 5 exits: *Fac x4 / *Low) -6/Factory -6/Waste -6/Factory -5/Factory (discovered 6 exits: *Fac x4 / *Upp / [*Ext]) -4/Factory -4/DSF -3/Research (discovered 2 exits: *Res / *Qua) -3/Quarantine -2/Research (discovered 3 exits: *Acc / *Tes x2) -2/Testing (discovered 2 exits: *Acc / *Sec) -2/Section 7 -1/Access -1/Command History --------- Turn | Location | Event 4 | -11/Junkyard | Discovered new exit (range 15) 15 | -11/Junkyard | Entered Materials 18 | -10/Materials | Identified exit to Mines 33 | -10/Materials | Entered Mines 59 | -10/Mines | Assembled infested the area 64 | -10/Mines | Assisted by a Guerilla fighting off Assembled 140 | -10/Mines | Learned Materials non-interactive machine intel 140 | -10/Mines | Discovered new exit (range 16) 147 | -10/Mines | Entered Materials 147 | -9/Materials | Evolved 2 slots: Propulsion x1, Utility x1 148 | -9/Materials | Loaded intel: 43 non-interactive machine locations 176 | -9/Materials | Discovered new exit (range 11) 181 | -9/Materials | Entered another Materials area 181 | -8/Materials | Evolved 2 slots: Propulsion x1, Utility x1 260 | -8/Materials | Discovered new exit (range 14) 267 | -8/Materials | Entered Factory 267 | -7/Factory | Evolved 2 slots: Propulsion x1, Utility x1 327 | -7/Factory | Build established: Mutant 436 | -7/Factory | Discovered new exit (range 6) 450 | -7/Factory | Identified exit to Lower Caves 476 | -7/Factory | Identified exit to Factory 538 | -7/Factory | Entered another Factory area 538 | -6/Factory | Evolved 2 slots: Propulsion x1, Utility x1 620 | -6/Factory | Sucked down chute 620 | -6/Factory | Entered Waste 639 | -6/Waste | Lost 3 parts (3n) 639 | -6/Waste | Spotted C-40 Crusher 642 | -6/Waste | Spotted C-40 Crusher 642 | -6/Waste | Spotted C-40 Crusher 643 | -6/Waste | Spotted C-40 Crusher 667 | -6/Waste | Spotted C-40 Crusher 671 | -6/Waste | Spotted C-40 Crusher 680 | -6/Waste | Discovered new exit (range 12) 695 | -6/Waste | Identified exit to Factory 696 | -6/Waste | Entered Factory 772 | -6/Factory | Build established: Hacker-Mutant 1134 | -6/Factory | Found Prototype Launcher 1134 | -6/Factory | Identified Rocket Array 1136 | -6/Factory | Found Rocket Array 1159 | -6/Factory | Discovered new exit (range 12) 1163 | -6/Factory | Identified exit to Factory 1171 | -6/Factory | Entered another Factory area 1171 | -5/Factory | Evolved 2 slots: Propulsion x1, Utility x1 1196 | -5/Factory | Build established: Hacker-Sprinter 1220 | -5/Factory | Identified exit to Factory 1231 | -5/Factory | Discovered new exit (range 11) 1335 | -5/Factory | Discovered new exit (range 17) 1338 | -5/Factory | Identified exit to Upper Caves 1359 | -5/Factory | Lost 3 parts (2n1u) 1400 | -5/Factory | Entered another Factory area 1400 | -4/Factory | Evolved 2 slots: Propulsion x1, Utility x1 1405 | -4/Factory | Identified exit to DSF 1405 | -4/Factory | Entered DSF 1452 | -4/DSF | Additional patrols routed to DSF 1486 | -4/DSF | Discovered new exit (range 15) 1498 | -4/DSF | Identified exit to Research 1498 | -4/DSF | Entered Research 1498 | -3/Research | Evolved 2 slots: Propulsion x1, Utility x1 1521 | -3/Research | Lost 7 parts (1p2n3u1w) 1600 | -3/Research | Build established: Hacker-Scout 1651 | -3/Research | Discovered new exit (range 19) 1696 | -3/Research | Discovered new exit (range 9) 1698 | -3/Research | Identified exit to Quarantine 1698 | -3/Research | Entered Quarantine 1731 | -3/Quarantine | Crushed by falling debris 1731 | -3/Quarantine | System corruption reached 10% 1762 | -3/Quarantine | Lost 3 parts (2n1u) 1820 | -3/Quarantine | Found Alien Artifact 1820 | -3/Quarantine | Identified Transdimensional Reconstructor 1820 | -3/Quarantine | Warped through subspace 1851 | -3/Quarantine | Discovered new exit (range 11) 1947 | -3/Quarantine | Build established: Hacker-Ninja 2127 | -3/Quarantine | Found Alien Artifact 2127 | -3/Quarantine | Identified Phase Redirector 2142 | -3/Quarantine | Found Alien Artifact 2223 | -3/Quarantine | Found Alien Artifact 2223 | -3/Quarantine | Identified Core Reset Matrix 2223 | -3/Quarantine | Identified Subatomic Replicator 2223 | -3/Quarantine | Used Core Reset Matrix 2227 | -3/Quarantine | Detected hypermatrix surge 2227 | -3/Quarantine | Sensed 8 artifacts in vicinity 2349 | -3/Quarantine | Lost 3 parts (2n1u) 2403 | -3/Quarantine | Found Transdimensional Reconstructor 2420 | -3/Quarantine | Discovered new exit (range 10) 2423 | -3/Quarantine | Identified exit to Research 2423 | -3/Quarantine | Entered Research 2423 | -2/Research | Evolved 2 slots: Propulsion x1, Utility x1 2428 | -2/Research | Identified exit to Testing 2487 | -2/Research | Found Prototype Device 2487 | -2/Research | Identified Exp. Thermal Shield 2532 | -2/Research | Warped through subspace 2652 | -2/Research | Discovered new exit (range 10) 2681 | -2/Research | Entered Testing 2709 | -2/Testing | Lost 6 parts (1p3n2u) 2749 | -2/Testing | Build established: Hacker-Scout 2805 | -2/Testing | Found Prototype Energy Cannon 2805 | -2/Testing | Identified Null Cannon 2829 | -2/Testing | Found Prototype Launcher 2829 | -2/Testing | Identified Z-bomb Delivery System 2976 | -2/Testing | Discovered new exit (range 16) 2983 | -2/Testing | Identified exit to Access 2984 | -2/Testing | Spotted PY-P8V0XZLDU3 2996 | -2/Testing | Lost 3 parts (1n2u) 3049 | -2/Testing | Spotted Fortress 3073 | -2/Testing | Discovered new exit (range 5) 3074 | -2/Testing | Identified exit to Section 7 3080 | -2/Testing | Lost 3 parts (1p2n) 3145 | -2/Testing | Entered Section 7 3146 | -2/Section 7 | Sensed 20 artifacts in vicinity 3167 | -2/Section 7 | Spotted B-90 Cyclops 3225 | -2/Section 7 | Spotted S7 Guard 3235 | -2/Section 7 | Found Core Membrane 3256 | -2/Section 7 | Core integrity fell below 50% 3287 | -2/Section 7 | Spotted Executioner 3288 | -2/Section 7 | Spotted Executioner 3301 | -2/Section 7 | Build established: Scout 3325 | -2/Section 7 | Installed Core Membrane, gained immunity to corruption 3329 | -2/Section 7 | Found Terrabomb 3368 | -2/Section 7 | Spotted B-99 Colossus 3392 | -2/Section 7 | Used Subatomic Replicator to replicate LRC Storage 3393 | -2/Section 7 | Found LRC Storage 3393 | -2/Section 7 | Installed LRC Storage, increased inventory capacity (+2) 3395 | -2/Section 7 | Search patrols dispatched 3395 | -2/Section 7 | Installed LRC Storage, increased inventory capacity (+2) 3400 | -2/Section 7 | Lost 3 parts (1p1n1u) 3472 | -2/Section 7 | Found Transdimensional Reconstructor 3476 | -2/Section 7 | Found Terrabomb 3477 | -2/Section 7 | Found Terrabomb 3490 | -2/Section 7 | Spotted Striker 3490 | -2/Section 7 | Spotted Striker 3493 | -2/Section 7 | Spotted Executioner 3493 | -2/Section 7 | Spotted Executioner 3509 | -2/Section 7 | Integrated with Sigix Exoskeleton 3542 | -2/Section 7 | Core integrity fell below 20% 3547 | -2/Section 7 | Found Sigix Sheargun 3548 | -2/Section 7 | Found Sigix Sheargun 3600 | -2/Section 7 | Spotted S7 Guard 3610 | -2/Section 7 | Found Integrated Thermoelectric Network 3610 | -2/Section 7 | Installed Integrated Thermoelectric Network, gained heat-energy exchange potential 3611 | -2/Section 7 | Warped through subspace 3639 | -2/Section 7 | Discovered exit to Access (range 17) 3647 | -2/Section 7 | Entered Access 3647 | -1/Access | Evolved 2 slots: Utility x1, Weapon x1 3652 | -1/Access | Emitted hypermatrix ping 3657 | -1/Access | Assembled emerged from beneath the floor 3703 | -1/Access | Found Unknown Device 3703 | -1/Access | Identified Launcher Loader 3788 | -1/Access | Assembled emerged from beneath the floor 3794 | -1/Access | Build established: Alien-Sigix 3986 | -1/Access | Found Unknown Device 3986 | -1/Access | Identified Antimissile System 4048 | -1/Access | Discovered new exit (range 16) 4069 | -1/Access | Entered Command 4074 | -1/Command | Emitted hypermatrix ping 4079 | -1/Command | Assembled emerged from beneath the floor 4177 | -1/Command | Assembled emerged from beneath the floor 4241 | -1/Command | Assembled emerged from beneath the floor 4366 | -1/Command | First assault squad dispatched 4424 | -1/Command | Spotted Combat Programmer 4466 | -1/Command | Disengaged cave seal 4543 | -1/Command | Met MAIN.C 4556 | -1/Command | 0b10 Conduit disabled 4599 | -1/Command | MAIN.C's shell transforms into a squad of autonomous robots 4599 | -1/Command | Destroyed MAIN.C Shell 4599 | -1/Command | Spotted M Shell/Def 4599 | -1/Command | Spotted M Shell/Atk 4599 | -1/Command | Spotted M Shell/Def 4599 | -1/Command | Spotted M Shell/Atk 4602 | -1/Command | MAIN.C activated Command garrisons 4644 | -1/Command | Sigix Exoskeleton integrity reduced to 80% 4669 | -1/Command | Found Prototype Device 4669 | -1/Command | Identified Exp. ECM Suite 4671 | -1/Command | Spotted M Shell/Atk 4672 | -1/Command | Spotted M Shell/Def 4672 | -1/Command | Spotted M Shell/Def 4677 | -1/Command | Spotted M Shell/Atk 4683 | -1/Command | Sigix Exoskeleton integrity reduced to 60% 4722 | -1/Command | Sigix Exoskeleton integrity reduced to 40% 4722 | -1/Command | Core integrity fell below 50% 4729 | -1/Command | Found Prototype Device 4729 | -1/Command | Identified Exp. Force Field 4767 | -1/Command | Sigix Exoskeleton integrity reduced to 20% 4777 | -1/Command | Core integrity fell below 20% 4777 | -1/Command | Exoskeleton Destroyed Last Messages --------------- 04770_ Acquired 5 matter. 04770_ Penetrated by Slug. 04770_ Knocked back. 04771_ Slug penetrates Earth. 04771_ Penetrated by Slug. 04771_ Acquired 5 matter. 04772_ Quantum Shear penetrates M Shell/Def. 04772_ MAIN.C knocked back. 04772_ Knocked back. 04773_ Penetrated by Slug. 04773_ Slug penetrates H-88 Terminator. 04775_ Kicked M Shell/Atk out of the way. 04775_ Lgt. Quantum Reactor destroyed. 04775_ Critical hit (Blast). 04776_ Acquired 2 matter. 04776_ Penetrated by Slug. 04776_ Slug penetrates M Shell/Atk. 04776_ Penetrated by Slug. 04776_ Kicked M Shell/Def out of the way. 04777_ Sigix Exoskeleton destroyed. Map ----- +----------------------------------------------------+ | ?????????????????????????????????????????????????? | | ?????????????????????????????????????????????????? | | ?????????????????????????????????????????????????? | | ?????????????????????????????????????????????????? | | ??????????????#????????????#?????????????????????? | | ?????????###########??###########????????????????? | | ??????##############################?????????????? | | ?????## #########################????????????? | | ???#### ###########################??????????? | | ####### + #######################?????????? | | ####### ! # ########################????????? | | ####### # #########################???????? | | ####### + #########################???????? | | ####### #### ######################??????? | | ########+####### #### ##################?????? | | ### # T## ##################?????? | | ### # ""## ##################?????? | | ### # #### ###################????? | | ### # #### ###################????? | | ### "" # ### #### ##############????? | | ###"""" # ## # #% ###############????? | | ###"""" # ##% % %% ##############????? | | ### "" # ;##%iiY%%################???? | | ### + Mi%hYh################????? | | ### # % [%ih%Y%#################???? | | ###% # ######=XY"#################????? | | ###! # #######%""#################????? | | ## ############# ####%]!]=%=################????? | | ####]]]]]==################????? | | % ####!%![%%=################????? | | #/#########+#### ####!!!**==###############?????? | | # #k ##########################?????? | | # # ####### #################?????? | | """" +=! + #########################??????? | | """" #=! # #########################???#??# | | """" #! # ################################ | | """" + # ################################ | | # # ################################ | | * # # ################################ | | # # ################################ | | ####### ################################ | | ################ ################################ | | % # = ] #### ################################ | | # #### ################################ | | ""# #### ################################ | | T"# "" #### ################################ | | ""# """" #### ################################ | | # """" ### ########""""""" """" ### | | # "" #### ########"" "" ### | | # #### ########""""" "" ### | +----------------------------------------------------+ Best States ------------- Heat Dissipation 122 Energy Generation 67 Energy Capacity 450 Matter Stores 300 Matter Capacity 600 Sight Range 22 Robot Scan Range 16 Terrain Scan Range 20 Terrain Scan Density 410 ECM Strength 3 Jamming Range 14 Cloak Strength 3 Resistance: KI 50 Resistance: TH 50 Resistance: EX 50 Resistance: EM 50 Resistance: I 50 Resistance: S 50 Resistance: P 50 Core Shielding 30 Propulsion Shielding 66 Utility Shielding 66 Point Defense Rating 240 Evasion (%) 69 Targeting Accuracy 8 Target Analysis 6 Core Analysis 6 Particle Charging 25 Offensive Hacking 28 Defensive Hacking 32 Item Schematics ----------------- None Robot Schematics ------------------ None Fabricated ------------ Nothing Alien Tech Used ----------------- Transdimensional Reconstructor Phase Redirector Core Reset Matrix Core Membrane Subatomic Replicator LRC Storage Sigix Exoskeleton Sigix Sheargun Integrated Thermoelectric Network Achievements -------------- None Challenges ------------ None Game ------ Seed DecoderDisposableField Manual? 0 Play Time 02:41:20 Cumulative 322.4 hours Start 2023.05.13 @ 16:41:14 End 2023.05.14 @ 16:46:15 Sessions 5 Manual Loads 0 Difficulty Rogue Special Mode None Game No. 129 Rogue 113 Adventurer 8 Explorer 8 Win Type - Total 24 Types 12/1/7/1/1/1/1/0/0 Lore% 88 Gallery% 87 Achievement% 76 Wizard Run 0 Options --------- ASCII 1 Keyboard 1 Movement Vi Keybinds 0 Fullscreen 1 Font 18/SmallcapsGlow Map View 76x50 Tactical HUD 1 Map Filters NONE Filters NONE Steam 0 RUN: e9f568ff-73ee-4a1d-b35f-231da71707c0